Workbook

Sheet Kaiserex Balance
A1: Kaiserex balance estimation
A2: EUR | B2: CRYPTO5 | C2: Bitcoin | D2: Ethereum | E2: Maidsafe | F2: Monero | G2: Factom
A3: 0 | B3: 1 | C3: 1 | D3: 25 | E3: 1000 | F3: 50 | G3: 50
D4: CRYPTO5 value: | F4: =B3*'CMC Summary'!C2+25*'CMC Summary'!C3*B3+1000*'CMC Summary'!C4*B3+50*'CMC Summary'!C5*B3+50*'CMC Summary'!C6*B3 -> 2727.44 | G4: =F4*'CMC Summary'!B8 -> 2579.585478
D5: Other CRYPTO value: | F5: =C3*'CMC Summary'!C2+'Kaiserex Balance'!D3*'CMC Summary'!C3+'Kaiserex Balance'!E3*'CMC Summary'!C4+'Kaiserex Balance'!F3*'CMC Summary'!C5+'Kaiserex Balance'!G3*'CMC Summary'!C6 -> 2727.44 | G5: =F5*'CMC Summary'!B8 -> 2579.585478
D6: Total account value: | F6: =A3+F4+F5 -> 5454.88 | G6: =F6*'CMC Summary'!B8 -> 5159.170955

Sheet CMC Summary (hidden)
A1: Name | B1: Market Cap | C1: Price | D1: Available Supply | E1: Daily Volume | F1: Daily Change
A2: Bitcoin | B2: =VLOOKUP("*" & A2 & "*",'CMC Data'!B:C,2,FALSE) -> $19,845,059,234 | C2: =VALUE(SUBSTITUTE(SUBSTITUTE(VLOOKUP("*" & A2 & "*",'CMC Data'!B:D,3,FALSE), ".",","),"$","")) -> 1224.86 | D2: =ONLYNUMS(VLOOKUP("*" & A2 & "*",'CMC Data'!B:E,4,FALSE)) -> 16201900 | E2: =VLOOKUP("*" & A2 & "*",'CMC Data'!B:G,5,FALSE) -> $240,355,000 | F2: =VLOOKUP("*" & A2 & "*",'CMC Data'!B:H,6,FALSE) -> -3.89%
A3: Ethereum | B3: =VLOOKUP("*" & A3 & "*",'CMC Data'!B:C,2,FALSE) -> $1,705,341,738 | C3: =VALUE(SUBSTITUTE(SUBSTITUTE(VLOOKUP("*" & A3 & "*",'CMC Data'!B:D,3,FALSE), ".",","),"$","")) -> 19.05 | D3: =ONLYNUMS(VLOOKUP("*" & A3 & "*",'CMC Data'!B:E,4,FALSE)) -> 89526301 | E3: =VLOOKUP("*" & A3 & "*",'CMC Data'!B:G,5,FALSE) -> $40,516,200 | F3: =VLOOKUP("*" & A3 & "*",'CMC Data'!B:H,6,FALSE) -> -2.62%
A4: MaidSafeCoin | B4: =VLOOKUP("*" & A4 & "*",'CMC Data'!B:C,2,FALSE) -> $73,462,833 | C4: =VALUE(SUBSTITUTE(SUBSTITUTE(VLOOKUP("*" & A4 & "*",'CMC Data'!B:D,3,FALSE), ".",","),"$","")) -> 0.16233 | D4: =ONLYNUMS(VLOOKUP("*" & A4 & "*",'CMC Data'!B:E,4,FALSE)) -> 452552412 | E4: =VLOOKUP("*" & A4 & "*",'CMC Data'!B:G,5,FALSE) -> 338.548 | F4: =VLOOKUP("*" & A4 & "*",'CMC Data'!B:H,6,FALSE) -> -1.89%
A5: Monero | B5: =VLOOKUP("*" & A5 & "*",'CMC Data'!B:C,2,FALSE) -> $198,101,743 | C5: =VALUE(SUBSTITUTE(SUBSTITUTE(VLOOKUP("*" & A5 & "*",'CMC Data'!B:D,3,FALSE), ".",","),"$","")) -> 14.08 | D5: =ONLYNUMS(VLOOKUP("*" & A5 & "*",'CMC Data'!B:E,4,FALSE)) -> 14070426 | E5: =VLOOKUP("*" & A5 & "*",'CMC Data'!B:G,5,FALSE) -> $6,023,110 | F5: =VLOOKUP("*" & A5 & "*",'CMC Data'!B:H,6,FALSE) -> -10.04%
A6: Factom | B6: =VLOOKUP("*" & A6 & "*",'CMC Data'!B:C,2,FALSE) -> $27,990,256 | C6: =VALUE(SUBSTITUTE(SUBSTITUTE(VLOOKUP("*" & A6 & "*",'CMC Data'!B:D,3,FALSE), ".",","),"$","")) -> 3.2 | D6: =ONLYNUMS(VLOOKUP("*" & A6 & "*",'CMC Data'!B:E,4,FALSE)) -> 8753219 | E6: =VLOOKUP("*" & A6 & "*",'CMC Data'!B:G,5,FALSE) -> 549.178 | F6: =VLOOKUP("*" & A6 & "*",'CMC Data'!B:H,6,FALSE) -> 0.52%
A8: USD/EUR | B8: =VALUE(SUBSTITUTE('XE Data'!D76,".",",")) -> 0.94579

Sheet CMC Data (hidden)
A1: Follow @CoinMKTCap
A2: CryptoCurrency Market Capitalizations
A4: Toggle navigation
A5: Market Cap
A6: All
A7: Currencies
A8: Assets
A9: Trade Volume
A10: 24 Hour Volume Rankings (Currency)
A11: 24 Hour Volume Rankings (Exchange)
A12: Monthly Volume Rankings (Currency)
A13: Trending
A14: Gainers and Losers
A15: Recently Added
A16: Tools
A17: Global Charts
A18: Historical Snapshots
A19: Currency Converter Calculator
A20: All
A21: Top 100
A22: Full List
A23: Currencies
A24: Top 100
A25: Full List
A26: Market Cap by Circulating Supply
A27: Market Cap by Total Supply
A28: Filter Non-Mineable
A29: Filter Premined
A30: Filter Non-Mineable and Premined
A31: Assets
A32: Top 100
A33: Full List
A34: Market Cap by Circulating Supply
A35: Market Cap by Total Supply
A36: USD
A37: USD
A38: BTC
A39: EUR
A40: CNY
A41: GBP
A42: CAD
A43: RUB
A44: HKD
A45: JPY
A46: AUD
A47: Next 100 →
A48: View All
A49: # | B49: Name | C49: Market Cap | D49: Price | E49: Circulating Supply | F49: Volume (24h) | G49: % Change (24h) | H49: Price Graph (7d)
A50: 1 | B50: BitcoinBitcoin | C50: $19,845,059,234 | D50: $1224.86 | E50: 16,201,900 BTC | F50: $240,355,000 | G50: -3.89% | H50: sparkline
A51: 2 | B51: EthereumEthereum | C51: $1,705,341,738 | D51: $19.05 | E51: 89,526,301 ETH | F51: $40,516,200 | G51: -2.62% | H51: sparkline
A52: 3 | B52: DashDash | C52: $321,628,797 | D52: $44.98 | E52: 7,150,135 DASH | F52: $10,520,400 | G52: 0.68% | H52: sparkline
A53: 4 | B53: RippleRipple | C53: $224,938,112 | D53: $0.006013 | E53: 37,406,829,143 XRP * | F53: $1,058,300 | G53: -1.51% | H53: sparkline
A54: 5 | B54: MoneroMonero | C54: $198,101,743 | D54: $14.08 | E54: 14,070,426 XMR | F54: $6,023,110 | G54: -10.04% | H54: sparkline
A55: 6 | B55: LitecoinLitecoin | C55: $190,890,321 | D55: $3.81 | E55: 50,080,232 LTC | F55: $6,143,620 | G55: -1.60% | H55: sparkline
A56: 7 | B56: Ethereum ClassicEthereum Classic | C56: $122,582,363 | D56: $1.37 | E56: 89,490,548 ETC | F56: $2,240,400 | G56: -3.15% | H56: sparkline
A57: 8 | B57: NEMNEM | C57: $99,489,600 | D57: $0.011054 | E57: 8,999,999,999 XEM * | F57: 778.542 | G57: 2.37% | H57: sparkline
A58: 9 | B58: MaidSafeCoinMaidSafeCoin | C58: $73,462,833 | D58: $0.162330 | E58: 452,552,412 MAID * | F58: 338.548 | G58: -1.89% | H58: sparkline
A59: 10 | B59: AugurAugur | C59: $63,420,830 | D59: $5.77 | E59: 11,000,000 REP * | F59: 279.626 | G59: -2.20% | H59: sparkline
A60: 11 | B60: ZcashZcash | C60: $31,072,551 | D60: $38.28 | E60: 811,781 ZEC | F60: $1,273,020 | G60: -0.60% | H60: sparkline
A61: 12 | B61: FactomFactom | C61: $27,990,256 | D61: $3.20 | E61: 8,753,219 FCT * | F61: 549.178 | G61: 0.52% | H61: sparkline
A62: 13 | B62: IconomiIconomi | C62: $27,803,895 | D62: $0.319585 | E62: 87,000,000 ICN * | F62: 60.904 | G62: -5.07% | H62: sparkline
A63: 14 | B63: TetherTether | C63: $24,950,877 | D63: $1.00 | E63: 24,950,378 USDT * | F63: $8,069,610 | G63: 0.00% | H63: sparkline
A64: 15 | B64: DogecoinDogecoin | C64: $22,688,387 | D64: $0.000209 | E64: 108,426,141,411 DOGE | F64: 155.739 | G64: -0.35% | H64: sparkline
A65: 16 | B65: SteemSteem | C65: $22,645,603 | D65: $0.094820 | E65: 238,826,281 STEEM | F65: 52.004 | G65: -4.26% | H65: sparkline
A66: 17 | B66: WavesWaves | C66: $21,889,300 | D66: $0.218893 | E66: 100,000,000 WAVES * | F66: 287.174 | G66: -10.13% | H66: sparkline
A67: 18 | B67: DigixDAODigixDAO | C67: $19,939,980 | D67: $9.97 | E67: 2,000,000 DGD * | F67: 54.1 | G67: -4.88% | H67: sparkline
A68: 19 | B68: GolemGolem | C68: $18,151,028 | D68: $0.022135 | E68: 820,000,000 GNT * | F68: 228.082 | G68: -5.60% | H68: sparkline
A69: 20 | B69: ArdorArdor | C69: $16,101,874 | D69: $0.016118 | E69: 998,999,495 ARDR * | F69: 95.992 | G69: 0.62% | H69: sparkline
A70: 21 | B70: GameCreditsGameCredits | C70: $15,346,772 | D70: $0.251036 | E70: 61,133,750 GAME | F70: 444.185 | G70: 5.16% | H70: sparkline
A71: 22 | B71: Stellar LumensStellar Lumens | C71: $13,342,940 | D71: $0.001910 | E71: 6,987,295,521 XLM * | F71: 411.638 | G71: 7.77% | H71: sparkline
A72: 23 | B72: LiskLisk | C72: $12,095,032 | D72: $0.116254 | E72: 104,039,710 LSK * | F72: 105.738 | G72: -7.61% | H72: sparkline
A73: 24 | B73: ShadowCashShadowCash | C73: $10,828,908 | D73: $1.63 | E73: 6,636,987 SDC * | F73: 34.583 | G73: 2.58% | H73: sparkline
A74: 25 | B74: BytecoinBytecoin | C74: $10,734,672 | D74: $0.000059 | E74: 182,560,586,739 BCN | F74: 2.277 | G74: 7.34% | H74: sparkline
A75: 26 | B75: DecredDecred | C75: $10,237,283 | D75: $2.58 | E75: 3,966,094 DCR | F75: 205.432 | G75: 22.85% | H75: sparkline
A76: 27 | B76: PeercoinPeercoin | C76: $10,119,082 | D76: $0.422872 | E76: 23,929,421 PPC | F76: 502.478 | G76: -11.26% | H76: sparkline
A77: 28 | B77: BitSharesBitShares | C77: $9,512,549 | D77: $0.003677 | E77: 2,586,900,000 BTS * | F77: 160.646 | G77: 3.79% | H77: sparkline
A78: 29 | B78: KomodoKomodo | C78: $9,193,941 | D78: $0.091316 | E78: 100,682,362 KMD | F78: 36.014 | G78: -3.62% | H78: sparkline
A79: 30 | B79: StratisStratis | C79: $8,577,548 | D79: $0.087262 | E79: 98,296,483 STRAT | F79: 98.272 | G79: -9.28% | H79: sparkline
A80: 31 | B80: SiacoinSiacoin | C80: $8,508,976 | D80: $0.000356 | E80: 23,894,168,760 SC | F80: 66.601 | G80: 1.37% | H80: sparkline
A81: 32 | B81: SingularDTVSingularDTV | C81: $8,172,000 | D81: $0.013620 | E81: 600,000,000 SNGLS * | F81: 8.529 | G81: -9.27% | H81: sparkline
A82: 33 | B82: Storjcoin XStorjcoin X | C82: $8,154,592 | D82: $0.161579 | E82: 50,468,144 SJCX * | F82: 35.911 | G82: 2.72% | H82: sparkline
A83: 34 | B83: XaurumXaurum | C83: $8,094,184 | D83: $0.090111 | E83: 89,824,095 XAUR * | F83: 42.446 | G83: -5.05% | H83: sparkline
A84: 35 | B84: EmercoinEmercoin | C84: $7,922,344 | D84: $0.199764 | E84: 39,658,517 EMC | F84: 120.592 | G84: 3.60% | H84: sparkline
A85: 36 | B85: NxtNxt | C85: $7,884,048 | D85: $0.007892 | E85: 998,999,983 NXT * | F85: 99.212 | G85: -0.29% | H85: sparkline
A86: 37 | B86: BitcrystalsBitcrystals | C86: $7,535,122 | D86: $0.182067 | E86: 41,386,534 BCY * | F86: 7.64 | G86: -5.19% | H86: sparkline
A87: 38 | B87: CounterpartyCounterparty | C87: $7,508,187 | D87: $2.87 | E87: 2,619,817 XCP * | F87: 10.81 | G87: -4.82% | H87: sparkline
A88: 39 | B88: First BloodFirst Blood | C88: $7,400,474 | D88: $0.086496 | E88: 85,558,371 1ST * | F88: 121.441 | G88: 3.60% | H88: sparkline
A89: 40 | B89: ByteballByteball | C89: $7,202,789 | D89: $61.24 | E89: 117,610 GBYTE * | F89: 9.348 | G89: -19.56% | H89: sparkline
A90: 41 | B90: I/O CoinI/O Coin | C90: $7,030,695 | D90: $0.430885 | E90: 16,316,870 IOC * | F90: 11.9 | G90: -6.53% | H90: sparkline
A91: 42 | B91: GuldenGulden | C91: $6,899,884 | D91: $0.020204 | E91: 341,517,545 NLG ** | F91: 10.873 | G91: -6.80% | H91: sparkline
A92: 43 | B92: BitcoinDarkBitcoinDark | C92: $6,168,726 | D92: $4.79 | E92: 1,288,862 BTCD | F92: 5.074 | G92: 8.87% | H92: sparkline
A93: 44 | B93: AntSharesAntShares | C93: $5,909,500 | D93: $0.118190 | E93: 50,000,000 ANS * | F93: 9.016 | G93: -3.50% | H93: sparkline
A94: 45 | B94: RubycoinRubycoin | C94: $5,887,425 | D94: $0.244446 | E94: 24,084,766 RBY * | F94: 7.02 | G94: -0.84% | H94: sparkline
A95: 46 | B95: SysCoinSysCoin | C95: $5,523,512 | D95: $0.010556 | E95: 523,233,254 SYS | F95: 25.096 | G95: -6.88% | H95: sparkline
A96: 47 | B96: BitConnectBitConnect | C96: $4,982,513 | D96: $0.917637 | E96: 5,429,721 BCC | F96: 84.657 | G96: 2.39% | H96: sparkline
A97: 48 | B97: NamecoinNamecoin | C97: $4,867,654 | D97: $0.330315 | E97: 14,736,400 NMC | F97: 407.225 | G97: -8.29% | H97: sparkline
A98: 49 | B98: ChronobankChronobank | C98: $4,671,200 | D98: $6.58 | E98: 710,113 TIME * | F98: 91.521 | G98: -2.96% | H98: sparkline
A99: 50 | B99: NexusNexus | C99: $4,668,973 | D99: $0.098340 | E99: 47,477,671 NXS | F99: 17.823 | G99: -3.36% | H99: sparkline
A100: 51 | B100: Agoras TokensAgoras Tokens | C100: $4,323,354 | D100: $0.102937 | E100: 42,000,000 AGRS * | F100: 2.117 | G100: 1.03% | H100: sparkline
A101: 52 | B101: PotCoinPotCoin | C101: $3,963,525 | D101: $0.018347 | E101: 216,035,926 POT | F101: 125.407 | G101: 0.35% | H101: sparkline
A102: 53 | B102: YbCoinYbCoin | C102: $3,892,579 | D102: $1.29 | E102: 3,017,901 YBC * | F102: 30.483 | G102: -1.64% | H102: sparkline
A103: 54 | B103: E-Dinar CoinE-Dinar Coin | C103: $3,799,659 | D103: $0.278943 | E103: 13,621,634 EDR | F103: 780.393 | G103: -6.35% | H103: sparkline
A104: 55 | B104: CreditbitCreditbit | C104: $3,756,566 | D104: $0.299230 | E104: 12,554,110 CRBIT | F104: 503.52 | G104: 21.44% | H104: sparkline
A105: 56 | B105: SolarCoinSolarCoin | C105: $3,460,063 | D105: $0.099031 | E105: 34,939,293 SLR * | F105: 9.966 | G105: -7.02% | H105: sparkline
A106: 57 | B106: NexiumNexium | C106: $3,313,779 | D106: $0.049815 | E106: 66,521,586 NXC * | F106: 14.514 | G106: -3.50% | H106: sparkline
A107: 58 | B107: SynereoSynereo | C107: $3,030,224 | D107: $0.036839 | E107: 82,256,324 AMP * | F107: 5.232 | G107: -2.98% | H107: sparkline
A108: 59 | B108: GolosGolos | C108: $2,925,081 | D108: $0.024627 | E108: 118,777,300 GOLOS | F108: 1.462 | G108: -4.82% | H108: sparkline
A109: 60 | B109: ZCoinZCoin | C109: $2,900,152 | D109: $2.39 | E109: 1,211,334 XZC | F109: 181.296 | G109: -2.50% | H109: sparkline
A110: 61 | B110: BlackCoinBlackCoin | C110: $2,635,462 | D110: $0.034677 | E110: 76,000,519 BLK * | F110: 23.883 | G110: -0.44% | H110: sparkline
A111: 62 | B111: IONION | C111: $2,614,698 | D111: $0.229135 | E111: 11,411,168 ION * | F111: 6.227 | G111: 1.26% | H111: sparkline
A112: 63 | B112: SIBCoinSIBCoin | C112: $2,482,752 | D112: $0.180884 | E112: 13,725,661 SIB | F112: 30.018 | G112: 20.52% | H112: sparkline
A113: 64 | B113: LoMoCoinLoMoCoin | C113: $2,460,055 | D113: $0.012134 | E113: 202,735,664 LMC * | F113: 3.991 | G113: -3.91% | H113: sparkline
A114: 65 | B114: VerosVeros | C114: $2,397,307 | D114: $0.049216 | E114: 48,709,618 VRS * | F114: 25.713 | G114: -2.00% | H114: sparkline
A115: 66 | B115: NAV CoinNAV Coin | C115: $2,282,181 | D115: $0.037574 | E115: 60,738,135 NAV * | F115: 18.244 | G115: 2.74% | H115: sparkline
A116: 67 | B116: SuperNETSuperNET | C116: $2,186,358 | D116: $2.68 | E116: 816,061 UNITY * | F116: 1.321 | G116: -4.34% | H116: sparkline
A117: 68 | B117: PIVXPIVX | C117: $2,164,749 | D117: $0.041503 | E117: 52,158,236 PIVX | F117: 13.79 | G117: -4.62% | H117: sparkline
A118: 69 | B118: MonaCoinMonaCoin | C118: $2,125,863 | D118: $0.045628 | E118: 46,591,100 MONA | F118: 1.338 | G118: 6.10% | H118: sparkline
A119: 70 | B119: GridCoinGridCoin | C119: $2,125,300 | D119: $0.005483 | E119: 387,647,360 GRC | F119: 1.06 | G119: 1.62% | H119: sparkline
A120: 71 | B120: BoolberryBoolberry | C120: $2,111,605 | D120: $0.230004 | E120: 9,180,732 XBB | F120: 16.315 | G120: -4.87% | H120: sparkline
A121: 72 | B121: DigiByteDigiByte | C121: $2,038,294 | D121: $0.000251 | E121: 8,107,031,908 DGB | F121: 19.659 | G121: 14.82% | H121: sparkline
A122: 73 | B122: OmniOmni | C122: $1,919,458 | D122: $3.44 | E122: 558,233 OMNI * | F122: 11.084 | G122: -3.29% | H122: sparkline
A123: 74 | B123: AeonAeon | C123: $1,861,171 | D123: $0.135886 | E123: 13,696,562 AEON | F123: 874 | G123: -11.06% | H123: sparkline
A124: 75 | B124: VPNCoinVPNCoin | C124: $1,740,569 | D124: $0.004348 | E124: 400,339,746 VPN * | F124: 275.945 | G124: 18.51% | H124: sparkline
A125: 76 | B125: ClamsClams | C125: $1,704,926 | D125: $0.789649 | E125: 2,159,093 CLAM * | F125: 28.746 | G125: -10.18% | H125: sparkline
A126: 77 | B126: BurstBurst | C126: $1,653,412 | D126: $0.000961 | E126: 1,720,816,043 BURST | F126: 33.619 | G126: 1.21% | H126: sparkline
A127: 78 | B127: Pepe CashPepe Cash | C127: $1,584,370 | D127: $0.002257 | E127: 701,884,009 PEPECASH * | F127: 2.09 | G127: 6.84% | H127: sparkline
A128: 79 | B128: FairCoinFairCoin | C128: $1,576,763 | D128: $0.029768 | E128: 52,968,016 FAIR * | F128: 440 | G128: -3.90% | H128: sparkline
A129: 80 | B129: NovacoinNovacoin | C129: $1,564,324 | D129: $0.943018 | E129: 1,658,849 NVC | F129: 88.448 | G129: -3.09% | H129: sparkline
A130: 81 | B130: vSlicevSlice | C130: $1,560,448 | D130: $0.046733 | E130: 33,390,496 VSL * | F130: 1.141 | G130: -6.50% | H130: sparkline
A131: 82 | B131: RadiumRadium | C131: $1,497,823 | D131: $0.474556 | E131: 3,156,262 RADS * | F131: 1.95 | G131: -7.45% | H131: sparkline
A132: 83 | B132: CloakCoinCloakCoin | C132: $1,497,821 | D132: $0.306579 | E132: 4,885,596 CLOAK * | F132: 2.528 | G132: 13.41% | H132: sparkline
A133: 84 | B133: DubaiCoinDubaiCoin | C133: $1,477,022 | D133: $0.248763 | E133: 5,937,465 DBIC | F133: 16.89 | G133: -19.03% | H133: sparkline
A134: 85 | B134: BitBayBitBay | C134: $1,468,300 | D134: $0.001458 | E134: 1,007,354,414 BAY * | F134: 13.255 | G134: -1.87% | H134: sparkline
A135: 86 | B135: ExpanseExpanse | C135: $1,441,476 | D135: $0.220700 | E135: 6,531,383 EXP | F135: 10.864 | G135: 0.56% | H135: sparkline
A136: 87 | B136: LykkeLykke | C136: $1,410,603 | D136: $0.047020 | E136: 30,000,000 LKK * | F136: 3.64 | G136: -0.38% | H136: sparkline
A137: 88 | B137: UbiqUbiq | C137: $1,327,636 | D137: $0.036464 | E137: 36,409,401 UBQ | F137: 13.616 | G137: -8.03% | H137: sparkline
A138: 89 | B138: AuroracoinAuroracoin | C138: $1,312,314 | D138: $0.151570 | E138: 8,658,139 AUR ** | F138: 1.413 | G138: -2.40% | H138: sparkline
A139: 90 | B139: VertcoinVertcoin | C139: $1,257,770 | D139: $0.037075 | E139: 33,924,927 VTC | F139: 12.72 | G139: -6.97% | H139: sparkline
A140: 91 | B140: BelaCoinBelaCoin | C140: $1,255,325 | D140: $0.039085 | E140: 32,117,650 BELA | F140: 50.307 | G140: -2.33% | H140: sparkline
A141: 92 | B141: Pascal CoinPascal Coin | C141: $1,252,319 | D141: $0.178228 | E141: 7,026,500 PASC | F141: 64.379 | G141: -1.92% | H141: sparkline
A142: 93 | B142: IncentIncent | C142: $1,250,532 | D142: $0.054351 | E142: 23,008,312 INCNT * | F142: 18.813 | G142: 5.20% | H142: sparkline
A143: 94 | B143: AdzcoinAdzcoin | C143: $1,228,568 | D143: $0.023102 | E143: 53,181,080 ADZ | F143: 2.663 | G143: -2.97% | H143: sparkline
A144: 95 | B144: CureCoinCureCoin | C144: $1,221,457 | D144: $0.046212 | E144: 26,431,310 CURE ** | F144: 1.11 | G144: -1.90% | H144: sparkline
A145: 96 | B145: HEATHEAT | C145: $1,187,628 | D145: $0.046043 | E145: 25,793,656 HEAT * | F145: 613 | G145: -4.40% | H145: sparkline
A146: 97 | B146: NautilusCoinNautilusCoin | C146: $1,171,678 | D146: $0.072415 | E146: 16,180,000 NAUT * | F146: 17.215 | G146: -4.20% | H146: sparkline
A147: 98 | B147: Global Currency ReserveGlobal Curren... | C147: $1,148,934 | D147: $0.011233 | E147: 102,278,348 GCR * | F147: 2.296 | G147: -8.59% | H147: sparkline
A148: 99 | B148: Steem DollarsSteem Dollars | C148: $1,115,186 | D148: $1.02 | E148: 1,089,783 SBD * | F148: 15.273 | G148: 3.57% | H148: sparkline
A149: 100 | B149: VeriCoinVeriCoin | C149: 982.256 | D149: $0.032748 | E149: 29,994,759 VRC | F149: 1.42 | G149: -2.63% | H149: sparkline
A150: Next 100 →
A151: View All
A152: * Not Mineable
A153: ** Significantly Premined
A154: Total Market Cap: $23,494,267,466
A156: Last updated: Mar 07, 2017 12:55 PM UTC
A158: © 2017 CoinMarketCap | Advertise | API | Request Form
A159: Donate BTC: 15gJiApW3G9MN2iTteQwQbq7NundwGWwv6
A160: ×
A161: Donate Bitcoin
A162: 15gJiApW3G9MN2iTteQwQbq7NundwGWwv6
A163: Donate Bitcoin

Sheet XE Data (hidden)
A1: We use cookies to understand our site usage and to customize your experience, including advertising. By using our site, you agree to our use of cookies.
A2: The World's Trusted Currency Authority
A3: FAQ
A4: Site Map
A5: Company Info▼
A6: About Us
A7: Contact Us
A8: Newsletters
A9: Partnerships
A10: Careers
A11: Legal
A12: English▼
A13: Deutsch
A14: Español
A15: Français
A16: Português
A17: Italiano
A18: Svenska
A19: 简体中文
A20: 繁體中文
A21: 日本語
A22: العربية
A23: Home
A24: Tools
A25: Currency Converter
A26: Currency Charts
A27: Historical Currency Rates
A28: Travel Expenses Calculator
A29: IBAN Calculator
A30: Currency Email
A31: More...
A32: Transfer Money
A33: XE Money Transfer
A34: Why XE?
A35: How it Works
A36: Currencies
A37: Great Rates & No Fees
A38: Trusted Brand
A39: Secure & Reliable
A40: Account Login
A41: Currency Data
A42: XE Currency Data API Home
A43: Overview
A44: Specifications
A45: Pricing
A46: FAQ
A47: Use our Content
A48: Free Currency Converter
A49: Customize our Converter
A50: Link to XE.com
A51: More Services...
A52: Apps
A53: Android
A54: iPhone
A55: iPad
A56: BlackBerry
A57: BlackBerry 10
A58: Windows Phone
A59: Windows 8
A60: Firefox
A61: Learn
A62: Money Transfer Tips
A63: Intro to Forex Trading
A64: Currency Encyclopedia
A65: Currency Charts
A66: Money Transfer Glossary
A67: Free Currency Email
A68: Learn More...
A69: Blog
A70: Blog
A71: Forum
A72: Ad
A73: AD
A74: XE Live Exchange Rates
A75: 59 | C75: USD | D75: EUR | E75: GBP | F75: INR | G75: AUD | H75: CAD | I75: ZAR | J75: NZD | K75: JPY
B76: 1 USD | C76: 100000 | D76: 0.94579 | E76: 0.81994 | F76: 666340 | G76: 131642 | H76: 134076 | I76: 129595 | J76: 143146 | K76: 113962
B77: Inverse: | C77: 100000 | D77: 105732 | E77: 121960 | F77: 0.01501 | G77: 0.75963 | H77: 0.74584 | I77: 0.07716 | J77: 0.69859 | K77: 0.00877
B78: 1 EUR | C78: 105732 | D78: 100000 | E78: 0.86694 | F78: 704533 | G78: 139188 | H78: 141761 | I78: 137023 | J78: 151351 | K78: 120494
B79: Inverse: | C79: 0.94579 | D79: 100000 | E79: 115349 | F79: 0.01419 | G79: 0.71845 | H79: 0.70541 | I79: 0.07298 | J79: 0.66072 | K79: 0.00830
B80: 1 GBP | C80: 121960 | D80: 115349 | E80: 100000 | F80: 812670 | G80: 160551 | H80: 163520 | I80: 158055 | J80: 174582 | K80: 138989
B81: Inverse: | C81: 0.81994 | D81: 0.86694 | E81: 100000 | F81: 0.01231 | G81: 0.62285 | H81: 0.61155 | I81: 0.06327 | J81: 0.57280 | K81: 0.00719
A82: Mid-market rates: 2017-03-07 12:55 UTC
A83: Initiate auto-refresh
A84: Did you know?
A85: You can exchange money online with us. Transfer Money ►
A86: Click on a currency code to learn about it.
A87: XE Currency Converter
A88: More currencies
A89: Amount
A90: Convert
A91: Full currency list ►
A92: Easy & Secure Currency Transfers. Click Here!!
A93: More Tools & Services
A94: Paste link in email or IM
A95: Link Url
A96: Featured Products
A97: More XE Products
A98: Send Cheap Money Transfers
A99: Get currency rates for your business
A100: Download our Free XE Currency App
A101: AD
A102: Ad
A103: Ad
A104: XE Currency Tools
A105: XE Currency App
A106: Historical Currency Rates
A107: Travel Expenses Calculator
A108: Currency Email Updates
A109: Free Currency Converter
A110: More Tools
A111: XE Market Analysis
A112: Asian Edition
A113: FX trade was quiet in N.Y. on Monday, with major dollar pairings ... Read More ▶
A114: European Edition
A115: The dollar has settled along with other markets as the release of the ... Read More ▶
A116: North American Edition
A117: The dollar has been mixed, posting a three-session high versus the ... Read More ▶
A118: More XE Commentary
A119: Popular Currency Profiles
A120: USD - US Dollar
A121: EUR - Euro
A122: GBP - British Pound
A123: INR - Indian Rupee
A124: AUD - Australian Dollar
A125: CAD - Canadian Dollar
A126: SGD - Singapore Dollar
A127: CHF - Swiss Franc
A128: MYR - Malaysian Ringgit
A129: JPY - Japanese Yen
A130: CNY - Chinese Yuan Renminbi
A131: More currencies
A132: Get an XE account
A133: Sign up FREE!
A134: Access premium XE Services like Rate Alerts. Learn more ▶
A135: Tools
A136: Currency Converter
A137: Currency Charts
A138: Currency Emails
A139: Historical Rates
A140: Expense Calculator
A141: IBAN Calculator
A142: Transfer Money
A143: XE Money Transfer
A144: Why XE?
A145: How it Works
A146: Currencies
A147: Great Rates & No Fees
A148: Trusted Brand
A149: Secure & Reliable
A150: Account Login
A151: Important Information
A152: Currency Data
A153: Currency Data API
A154: Overview
A155: Specifications
A156: Pricing
A157: FAQ
A158: Apps
A159: iPhone
A160: Android
A161: BlackBerry
A162: Windows Phone
A163: More...
A164: Use our Content
A165: Free Converter
A166: Customized Converter
A167: Link to XE
A168: Learn
A169: Money Transfer Tips
A170: XE Currency Blog
A171: Currency Encyclopedia
A172: Intro to Forex Trading
A173: Money Transfer Glossary
A174: Top · 2017-03-07 12:56 UTC (GMT)
A175: © 1995-2017 · Site Map · Privacy · Terms of Use
A176: dcsimg
